Cogmind - Beta 14 @@@ ROGUE MODE // 2024.11.19 @ 23:19:30 Player: Fangrelle Result: Destroyed by as-65023 with Assembled Rifle Performance ------------- Evolutions (0) 0 Regions Visited (2) 400 Robots Destroyed (32) 160 Value Destroyed (708) 708 Prototype IDs (0) 0 Alien Tech Used (0) 0 Bonus (60) 60 TOTAL SCORE: 1328 Bonus ------- Follower Combat Kills 60 Cogmind --------- Core Integrity 0/250 Matter 203/300 Energy 100/100 System Corruption 2% Temperature Cool (0) Movement Core (2400) Ox47 Location -10/Mines Parts ------- > --- POWER (1) -------- (None) > --- PROPULSION (2) --- (None) > --- UTILITY (2) ------ Cargo Storage Unit > --- WEAPON (2) ------- Light Cannon > --- INVENTORY (30) --- Light Treads Light Treads Aluminum Leg Aluminum Leg Improved Heat Sink Huge Storage Unit Cargo Storage Unit Cargo Storage Unit Visual Processing Unit Signal Interpreter Signal Interpreter Power Shielding Light Armor Plating Hacking Suite Tractor Beam Recalibrator Particle Gun Beamcaster Light Assault Rifle Datajack Mining Laser Peak State ------------ > --- POWER ------------ Light Angular Momentum Engine > --- PROPULSION ------- Light Treads Light Treads > --- UTILITY ---------- Cargo Storage Unit > --- WEAPON ----------- Particle Gun Beamcaster > --- INVENTORY -------- Light Treads Aluminum Leg Aluminum Leg Compact Wheel Improved Heat Sink Huge Storage Unit Cargo Storage Unit Cargo Storage Unit Visual Processing Unit Signal Interpreter Signal Interpreter Power Shielding Light Armor Plating Hacking Suite Tractor Beam Recalibrator Assault Rifle Light Assault Rifle Light Cannon Datajack Mining Laser [Rating: 19] Favorites ----------- Power Ion Engine Engine Ion Engine Propulsion Light Treads Treads Light Treads Leg Aluminum Leg Wheel Compact Wheel Utility Cargo Storage Unit Storage Cargo Storage Unit Protection Light Armor Plating Weapon Particle Gun Energy Gun Particle Gun Ballistic Gun Light Assault Rifle Ballistic Cannon Light Cannon Special Weapon Mining Laser Build | -11 -10 -10 ------- Run | Yrd Mat Min Slots Evolved . | . . . Power . | . . . Propulsion . | . . . Utility . | . . . Weapon . | . . . Parts Attached 21 | . 15 6 Power 2 | . 1 1 Engine 2 | . 1 1 Core . | . . . Reactor . | . . . Propulsion 6 | . 5 1 Treads 4 | . 4 . Leg 1 | . 1 . Wheel 1 | . . 1 Hover . | . . . Flight . | . . . Utility 2 | . 2 . Device . | . . . Storage 1 | . 1 . Processor . | . . . Hackware . | . . . Protection 1 | . 1 . Artifact . | . . . Weapon 11 | . 7 4 Energy Gun 3 | . 2 1 Energy Cannon . | . . . Ballistic Gun 4 | . 3 1 Ballistic Cannon 2 | . . 2 Launcher . | . . . Special Weapon 2 | . 2 . Impact Weapon . | . . . Slashing Weapon . | . . . Piercing Weapon . | . . . Special Melee Weapon . | . . . Unidentified Prototypes . | . . . Parts Lost 6 | . 2 4 Power 2 | . 1 1 Propulsion 2 | . . 2 Utility . | . . . Weapon 2 | . 1 1 Highest Loss Streak 4 | . 1 4 To Critical Strikes 1 | . 1 . Average Slot Usage (%) 73 | . 72 82 Engine 2 | . 1 12 Treads 27 | . 27 26 Storage 14 | . 14 14 Energy Gun 14 | . 13 22 Ballistic Gun 11 | . 12 2 Special Weapon 1 | . 1 . Peak Build Rating 19 | . 10 19 Average Rating 9 | . 8 15 On Entrance 7 | 6 6 10 Naked Turns . | . . . Heaviest Build 157 | 12 150 157 Greatest Support 40 | 20 40 40 Greatest Overweight (x) 9 | . 7 9 Average Overweight (x) 2 | . 2 3 Largest Inventory Capacity 30 | . 30 30 Average Capacity 29 | . 29 30 Most Carried 23 | . 22 23 Average Carried 16 | . 16 22 Final Capacity 30 | 8 30 30 Final Carried 23 | 6 21 23 Class Distribution -------------------- 99% | Hauler-Mutant Dominant Class ---------------- Hauler-Mutant | -10/Materials Hauler-Mutant | -10/Mines Resources | -11 -10 -10 ----------- Run | Yrd Mat Min Matter Collected 496 | 200 225 71 Remotely . | . . . Salvage Created 1043 | . 880 163 Parts 73 | . 66 7 Haulers Intercepted 2 | . 2 . Recyclers Shooed 2 | . 2 . Parts Field Recycled . | . . . Retrieved Matter . | . . . Parts Self-Destructed . | . . . Prevented . | . . . Kills | -11 -10 -10 ------- Run | Yrd Mat Min Combat Hostiles Destroyed 26 | . 16 10 Guns 22 | . 16 6 Cannons 4 | . . 4 Classes Destroyed 10 | . 7 3 Worker 1 | . 1 . Builder 1 | . . 1 Hauler 2 | . 2 . Recycler 3 | . 3 . Operator 2 | . 2 . Watcher 3 | . 3 . Swarmer 6 | . 6 . Grunt 12 | . 10 2 Demolisher 2 | . . 2 Assembled 6 | . . 6 Best Kill Streak 9 | . 3 9 Combat Bots Only 8 | . 3 8 Max Kills in Single Turn 2 | . 1 2 Gunslinging . | . . . Exploded . | . . . Melee . | . . . Uniques/NPCs Destroyed . | . . . Combat | -11 -10 -10 -------- Run | Yrd Mat Min Hostile Shots Fired 139 | . 80 59 Missed 34 | . 26 8 Damage Taken 1510 | . 602 908 Core 262 | . 75 187 Absorbed by Shields . | . . . Regen/Repaired (Parts) 113 | . 113 . Core Remaining (%) 100 | 100 . . Volleys Fired 117 | . 97 20 Largest 2 | . 2 2 Hottest 140 | . 100 140 Shots Fired 220 | . 183 37 Gun 198 | . 177 21 Cannon 16 | . . 16 Launcher . | . . . Special 6 | . 6 . Kinetic 116 | . 90 26 Thermal 104 | . 93 11 Explosive . | . . . Electromagnetic . | . . . Robot Hit Streak 16 | . 16 5 Robot Miss Streak 5 | . 5 3 Penetration Max . | . . . Secondary Targets 4 | . 3 1 Max Gunslinging Chain 1 | . 1 1 Shots Hit Robots 127 | . 108 19 Core Hits 66 | . 50 16 Critical Kills . | . . . Critical Parts Destroyed . | . . . Critical Strikes 1 | . 1 . Burn 1 | . 1 . Melee Attacks . | . . . Impact . | . . . Slashing . | . . . Piercing . | . . . Sneak Attacks . | . . . Combat Hostiles . | . . . Follow-up Attacks . | . . . Damage Inflicted 1538 | . 1179 359 Guns 1380 | . 1179 201 Cannons 158 | . . 158 Explosions . | . . . Melee . | . . . Ramming . | . . . Kinetic 688 | . 452 236 Thermal 850 | . 727 123 Explosive . | . . . Electromagnetic . | . . . Impact . | . . . Slashing . | . . . Piercing . | . . . Highest Corruption 2 | . . 2 Average Corruption 2 | . . 2 Corruption Purged . | . . . Corruption Blocked . | . . . Overload Shots . | . . . Overflow Damage . | . . . Projectiles . | . . . Explosions . | . . . Melee . | . . . Knockbacks 3 | . . 3 Impact . | . . . Kinetic 3 | . . 3 Secondary . | . . . Self-Inflicted Damage . | . . . Shots . | . . . Rammed . | . . . Targets Rammed . | . . . Kicked . | . . . Crushed . | . . . Highest Temperature 315 | . 110 315 Average Temperature 45 | . 33 107 Received Heat Transfer 343 | . 255 88 Siege Activations . | . . . Robots Corrupted . | . . . Combat Hostiles . | . . . Parts Fried . | . . . Impact Corruptions . | . . . Robots Melted . | . . . Combat Hostiles . | . . . Parts Melted 2 | . 2 . Heat Transferred 2033 | . 1774 259 Parts Sabotaged . | . . . Parts Stolen . | . . . Parts Stripped . | . . . Power Chain Reactions . | . . . Alert | -11 -10 -10 ------- Run | Yrd Mat Min Peak Influence 220 | . 220 115 Initial 31 | . . 31 Average 41 | . 36 83 Maximum Alert Level 1 | . 1 . Low Security (%) 98 | . 98 100 Level 1 1 | . 1 . Level 2 . | . . . Level 3 . | . . . Level 4 . | . . . Level 5 . | . . . High Security . | . . . Max Security . | . . . Squads Dispatched 4 | . 3 1 Investigation 1 | . 1 . Extermination . | . . . Reinforcement 2 | . 2 . Assault 1 | . . 1 Garrison . | . . . Intercept . | . . . Searches Triggered . | . . . Construction Impeded . | . . . Haulers Reinforced . | . . . Active Scanning Responses . | . . . Cargo Convoy Interrupts . | . . . Stealth | -11 -10 -10 --------- Run | Yrd Mat Min Distress Signals 3 | . 2 1 Communications Jammed . | . . . Distress Signals . | . . . Times Spotted 47 | . 33 14 Peak Tracking Total 8 | . 3 8 Tactical Retreats 3 | . 3 . Traps | -11 -10 -10 ------- Run | Yrd Mat Min Traps Triggered . | . . . Indirectly . | . . . Trap Hack Attempts . | . . . Triggered . | . . . Disarmed . | . . . Reprogrammed . | . . . Reused . | . . . Traps Extracted . | . . . Installed . | . . . Triggered 1 | . . 1 Machines | -11 -10 -10 ---------- Run | Yrd Mat Min Machines Disabled . | . . . Max in Single Turn . | . . . Machines Repaired . | . . . Machines Dismantled . | . . . Machines Sabotaged . | . . . Overloaded Fab Kills . | . . . Hacking | -11 -10 -10 --------- Run | Yrd Mat Min Machines Accessed 8 | . 8 . Terminals 6 | . 6 . Fabricators . | . . . Repair Stations 1 | . 1 . Recycling Units 1 | . 1 . Scanalyzers . | . . . Garrison Access . | . . . Total Hacks 33 | . 33 . Successful 14 | . 14 . Failed 19 | . 19 . Catastrophic . | . . . Database Lockouts . | . . . Manual 27 | . 27 . Terminals 26 | . 26 . Fabricators . | . . . Repair Stations 3 | . 3 . Recycling Units 4 | . 4 . Scanalyzers . | . . . Garrison Access . | . . . Terminal Hacks . | . . . Fabricator Hacks . | . . . Repair Station Hacks 2 | . 2 . Scan Component 1 | . 1 . Repair 1 | . 1 . Recycling Unit Hacks . | . . . Scanalyzer . | . . . Garrison Access Hacks . | . . . Unauthorized Hacks 12 | . 12 . Terminals 11 | . 11 . Track 1 | . 1 . Assimilate 2 | . 2 . Botnet 5 | . 5 . Operators 2 | . 2 . Skim 1 | . 1 . Fabricators . | . . . Repair Stations . | . . . Recycling Units 1 | . 1 . Tunnel 1 | . 1 . Scanalyzers . | . . . Garrison Access . | . . . Data Cores Recovered . | . . . Used . | . . . Hacking Detections 7 | . 7 . Full Trace Events 1 | . 1 . Feedback Events . | . . . Feedback Blocked . | . . . Robot Schematics Acquired . | . . . Robots Built . | . . . Authchips . | . . . Time . | . . . Total Robot Build Rating . | . . . Part Schematics Acquired . | . . . Parts Built . | . . . Authchips . | . . . Time . | . . . Total Part Build Rating . | . . . Parts Repaired 1 | . 1 . Time 26 | . 26 . Parts Recycled . | . . . Recycled Matter . | . . . Retrieved Matter . | . . . Retrieved Components . | . . . Parts Scanalyzed . | . . . Part Schematics Acquired . | . . . Parts Damaged . | . . . Bothacking | -11 -10 -10 ------------ Run | Yrd Mat Min Used RIF Installer . | . . . Robots Hacked . | . . . Non-combat . | . . . Combat . | . . . Robot Hacks Applied . | . . . Relay Couplers Released . | . . . Fabnet Peak Effective % . | . . . Robots Rewired . | . . . Allies Hacked . | . . . Hacks Repelled . | . . . Allies | -11 -10 -10 -------- Run | Yrd Mat Min Total Allies 1 | . . 1 Largest Group 1 | . . 1 Highest-Rated Group 31 | . . 31 Highest-Rated Ally 31 | . . 31 Total Orders . | . . . Ally Attacks 10 | . . 10 Total Damage 147 | . . 147 Kills 2 | . . 2 Allies Corrupted . | . . . Allies Melted . | . . . Intel | -11 -10 -10 ------- Run | Yrd Mat Min Robot Analysis Total . | . . . Derelict Logs Recovered . | . . . Drone Launches . | . . . Drone Recoveries . | . . . Exploration | -11 -10 -10 ------------- Run | Yrd Mat Min Turns Passed 5194 | . 4704 490 Spaces Moved 1207 | 1 1099 107 Core . | . . . Treads 1160 | . 1057 103 Legs 43 | 1 42 . Wheels 4 | . . 4 Hover . | . . . Flight . | . . . Fastest Speed 120 | 120 120 235 Average Speed 392 | 120 392 393 Slowest Speed 610 | 120 610 400 Overloaded Moves . | . . . Propulsion Burnouts . | . . . Robots Hopped . | . . . Cave-ins Triggered . | . . . Exploration Rate (%) 41 | 2 96 26 Regions Visited 2 Branch Regions 1 Pre-discovered Areas 1 | . 1 . Known Exits Taken . | . . . Unknown Exits Taken 2 | 1 1 . Scrap Searched 1 | . . 1 Spaces Dug 5 | . 5 . Terrain Destroyed 5 | . 5 . Melee . | . . . Projectile 5 | . 5 . AOE . | . . . Terrain Rammed . | . . . Walls Destroyed . | . . . Machines Disabled . | . . . Actions | -11 -10 -10 --------- Run | Yrd Mat Min Total 1449 | . 1312 137 Wait 77 | . 77 . Move 1205 | . 1098 107 Hop . | . . . Pick Up 22 | . 19 3 Fast Attach 2 | . 2 . Attach 4 | . 4 . Detach 2 | . 2 . Swap 15 | . 9 6 Drop 5 | . 4 1 Fire 117 | . 97 20 Melee . | . . . Ram . | . . . Kick . | . . . Crush . | . . . Escape Stasis . | . . . Rewire . | . . . Trap . | . . . Miscellaneous . | . . . Route ------- -11/Scrapyard -10/Materials (discovered 4 exits: [*Mat x3] / [*Min]) -10/Mines History --------- Turn | Location | Event 1 | -11/Scrapyard | Discovered new exit (range 0) 1 | -11/Scrapyard | Entered Materials 331 | -10/Materials | Build established: Hauler-Mutant 900 | -10/Materials | Discovered new exit (range 7) 1304 | -10/Materials | Discovered new exit (range 3) 1664 | -10/Materials | Discovered new exit (range 5) 3347 | -10/Materials | Discovered new exit (range 6) 4520 | -10/Materials | Repaired Lgt. Treads 4705 | -10/Materials | Entered Mines 4726 | -10/Mines | Met a Derelict testing a Signal Generator 5123 | -10/Mines | Assembled infested the area 5135 | -10/Mines | Core integrity fell below 50% 5176 | -10/Mines | Core integrity fell below 20% 5195 | -10/Mines | Destroyed by as-65023 with Assembled Rifle Last Messages --------------- 05169_ as-34176 destroyed. 05170_ The unstable cave ceiling collapses. 05171_ K-01 Serf collects debris. 05172_ Com. Wheel destroyed. 05172_ System corrupted by crushing effect (+2). 05172_ as-70994 destroyed. 05173_ Lgt. Treads destroyed. 05175_ K-01 Serf collects debris. 05175_ as-40020 knocked back. 05178_ as-40020 destroyed. 05179_ K-01 Serf collects debris. 05181_ as-65169 destroyed. 05182_ K-01 Serf collects debris. 05186_ The unstable cave ceiling collapses. 05186_ K-01 Serf collects debris. 05187_ Assault Rifle destroyed. 05189_ K-01 Serf collects debris. 05190_ as-65023 knocked back. 05193_ K-01 Serf collects debris. 05194_ U-05 Engineer lays Concrete. Map ----- +----------------------------------------------------+ | ????????# ### ##??????#########??### #???? | | ????????## ##?????# #?## ##??? | | ?????????## ##????# #?# ##?? | | ??????????## [ ##???# """ #?# #?? | | ???????????## ! = ##??# """ #?## #?? | | ????????????##### = ##?# """ #??## ##?? | | ????????????????## % #?# #???# ####??? | | ?????????????????# % %#?## ########## #?????? | | ????????????????##% ##??# #?????? | | ???????????????## ##### ############?????? | | ???????????????# % #????????????????? | | ???????????????# #????????????????? | | ???????????????## ### ###????????????????? | | ????????????????## #?# #??????????????????? | | ?????????????????## ##?# #??????????????????? | | ??????????????????###??# #??????????????????? | | ???????????????????????# #??????????????????? | | ???????????????????????# #????##????????????? | | ???????????????????????# #???? #????????????? | | ???????????????????????# #??? ####?????????? | | ????????????????????#### #?? ?????????? | | ????????????????????# #?# ??????????? | | ????????????????????# ## ## #????????????? | | ???????????????????## ##% = #?????????????? | | ?????????????????### %=% #?????????????? | | ????????????????## @%% % * #?????????????? | | ???????????????## % k ## #?????????? | | ???????????????# % |u % m #?????????? | | ???????????????# # =% *% #?????????? | | ???????????????## # ! ##%|% #?????????? | | ????????????????## ## # % aa a #????????? | | ?????????????????# # # #????????? | | ?????????????????## ## # " * ???????? | | ??????????????????## ^ ^ "%" % ???????? | | ???????????????????###### #####????????? | | ????????????????????????? ##????????????? | | ?????????????????????????# ##?????????????? | | ?????????????????????????? #??????????????? | | ??????????????????????????# #??????????????? | | ???????????????????????????# #??????????????? | | ????????????????????????????##??????????????? | | ????????????????????????????????????????????? | | ????????????????????????????????????????????? | | ????????????????????????????????????????????? | | ????????????????????????????????????????????? | | ????????????????????????????????????????????? | | ????????????????????????????????????????????? | | ????????????????????????????????????????????? | | ????????????????????????????????????????????? | | ????????????????????????????????????????????? | +----------------------------------------------------+ Best States ------------- Heat Dissipation 25 Energy Generation 18 Energy Capacity 250 Matter Stores 300 Matter Capacity 300 Sight Range 16 Terrain Scan Density 10 Armor Coverage 150 Evasion (%) 55 Recoil Reduction 2 Item Schematics ----------------- None Robot Schematics ------------------ None Fabricated ------------ Nothing Alien Tech Used ----------------- None Achievements -------------- None Challenges ------------ None Game ------ Seed ReactionAlertBrace Manual? 0 Play Time 00:16:19 Cumulative 121.5 hours Start 2024.11.19 @ 22:57:35 End 2024.11.19 @ 23:19:30 Sessions 1 Manual Loads 0 Difficulty Rogue Special Mode None Game No. 226 Rogue 226 Adventurer 0 Explorer 0 Win Type - Total 0 Types 0/0/0/0/0/0/0/0/0 Lore% 43 Gallery% 40 Achievement% 36 Wizard Run 0 Options --------- Layout 0 ASCII 0 Keyboard 0 Movement Mouse Keybinds 0 Fullscreen 1 Font 24/Smallcaps Map View 91x25 Zoom Use 88% Tactical HUD 1 Map Filters NONE Filters NONE Steam 1 RUN: 6c70b492-3352-44cb-83a6-19d59ee6bbd5